[Event "*** SCC Grand Prix: Titled Tuesday Blitz"]
[Site "Chess.com"]
[Date "2020.06.09"]
[Round "1"]
[White "chenxiaoyuer"]
[Black "gmmoranda"]
[Result "0-1"]
[WhiteElo "2368"]
[BlackElo "2709"]
[TimeControl "180+1"]
[EndTime "9:05:27 PDT"]
[Termination "gmmoranda won by resignation"]

1. e4 {[%clk 0:03:00.9]} 1... c5 {[%clk 0:03:00]} 2. Nf3 {[%clk 0:02:56.7]} 2...
d6 {[%clk 0:03:00.2]} 3. d4 {[%clk 0:02:56.5]} 3... cxd4 {[%clk 0:03:01.1]} 4.
Nxd4 {[%clk 0:02:55.9]} 4... Nf6 {[%clk 0:03:01.7]} 5. Nc3 {[%clk 0:02:55.6]}
5... a6 {[%clk 0:03:02.3]} 6. Be2 {[%clk 0:02:55.3]} 6... g6 {[%clk 0:03:01.6]}
7. O-O {[%clk 0:02:54.6]} 7... Bg7 {[%clk 0:03:02]} 8. a4 {[%clk 0:02:50.6]}
8... O-O {[%clk 0:03:00.9]} 9. Bg5 {[%clk 0:02:50.1]} 9... Nc6 {[%clk
0:02:59.6]} 10. Nb3 {[%clk 0:02:49.9]} 10... Be6 {[%clk 0:02:58.2]} 11. Kh1
{[%clk 0:02:50]} 11... h6 {[%clk 0:02:57.7]} 12. Be3 {[%clk 0:02:45.5]} 12... d5
{[%clk 0:02:56.1]} 13. exd5 {[%clk 0:02:23.1]} 13... Nxd5 {[%clk 0:02:57]} 14.
Nxd5 {[%clk 0:02:11.6]} 14... Qxd5 {[%clk 0:02:57.9]} 15. Nc5 {[%clk 0:01:44.7]}
15... Bxb2 {[%clk 0:02:39.8]} 16. Rb1 {[%clk 0:01:42.3]} 16... Bg7 {[%clk
0:02:40.3]} 17. Qxd5 {[%clk 0:01:10.2]} 17... Bxd5 {[%clk 0:02:39.9]} 18. c4
{[%clk 0:01:01.5]} 18... Nd4 {[%clk 0:02:25.5]} 19. Bxd4 {[%clk 0:00:37.1]}
19... Bxd4 {[%clk 0:02:25.1]} 20. Nb3 {[%clk 0:00:34.5]} 20... Be4 {[%clk
0:02:20.2]} 21. Nxd4 {[%clk 0:00:33]} 21... Bxb1 {[%clk 0:02:20.5]} 22. Rxb1
{[%clk 0:00:32.9]} 22... Rfd8 {[%clk 0:02:16.5]} 23. Nf3 {[%clk 0:00:32.6]}
23... Rac8 {[%clk 0:02:15.5]} 24. Rxb7 {[%clk 0:00:27.9]} 24... e5 {[%clk
0:02:15.7]} 25. h3 {[%clk 0:00:11.3]} 25... e4 {[%clk 0:02:15.4]} 26. Ng1 {[%clk
0:00:10.4]} 26... Rd2 {[%clk 0:02:15.3]} 27. Kh2 {[%clk 0:00:10.1]} 27... Ra2
{[%clk 0:02:13.3]} 28. Re7 {[%clk 0:00:09.5]} 28... f5 {[%clk 0:02:12.9]} 29.
Re6 {[%clk 0:00:08.6]} 29... Kf7 {[%clk 0:02:12.4]} 30. Rxa6 {[%clk 0:00:08.4]}
30... Rd8 {[%clk 0:02:10.5]} 31. Ra7+ {[%clk 0:00:07.8]} 31... Kf6 {[%clk
0:02:10.3]} 32. Ra6+ {[%clk 0:00:07.3]} 32... Ke5 {[%clk 0:02:10.6]} 33. Rxg6
{[%clk 0:00:06.7]} 33... Rdd2 {[%clk 0:02:10.6]} 34. Rxh6 {[%clk 0:00:06.7]}
34... Rxe2 {[%clk 0:02:11]} 35. Nxe2 {[%clk 0:00:06.7]} 35... Rxe2 {[%clk
0:02:11.9]} 36. Kg3 {[%clk 0:00:05.6]} 36... f4+ {[%clk 0:02:11.7]} 37. Kg4
{[%clk 0:00:05.8]} 37... Rxf2 {[%clk 0:02:12.2]} 38. Rh8 {[%clk 0:00:05.4]}
38... e3 {[%clk 0:02:12.3]} 39. Re8+ {[%clk 0:00:05.3]} 39... Kd4 {[%clk
0:02:12.7]} 40. Rf8 {[%clk 0:00:05.6]} 40... Rxg2+ {[%clk 0:02:11.7]} 41. Kh4
{[%clk 0:00:05.5]} 41... e2 {[%clk 0:02:11.2]} 42. Re8 {[%clk 0:00:05.6]} 42...
f3 {[%clk 0:02:11.5]} 43. Rd8+ {[%clk 0:00:05]} 43... Kc3 {[%clk 0:02:11.3]} 0-1

[Event "*** SCC Grand Prix: Titled Tuesday Blitz"]
[Site "Chess.com"]
[Date "2020.06.09"]
[Round "1"]
[White "WiktoriaPOL"]
[Black "UCantHandleDenker"]
[Result "0-1"]
[WhiteElo "2030"]
[BlackElo "2501"]
[TimeControl "180+1"]
[EndTime "9:05:27 PDT"]
[Termination "UCantHandleDenker won by resignation"]

1. c4 {[%clk 0:03:00.9]} 1... Nf6 {[%clk 0:02:58.1]} 2. Nc3 {[%clk 0:03:00.4]}
2... c5 {[%clk 0:02:53.4]} 3. Nf3 {[%clk 0:02:59.2]} 3... g6 {[%clk 0:02:52.8]}
4. d4 {[%clk 0:02:52]} 4... cxd4 {[%clk 0:02:53.7]} 5. Nxd4 {[%clk 0:02:50.9]}
5... Bg7 {[%clk 0:02:53]} 6. e4 {[%clk 0:02:49.4]} 6... d6 {[%clk 0:02:52.8]} 7.
f3 {[%clk 0:02:47.2]} 7... O-O {[%clk 0:02:52.6]} 8. Be3 {[%clk 0:02:46.2]} 8...
Nc6 {[%clk 0:02:52.4]} 9. Qd2 {[%clk 0:02:44.2]} 9... Bd7 {[%clk 0:02:51.3]} 10.
Be2 {[%clk 0:02:43.2]} 10... Nxd4 {[%clk 0:02:49.8]} 11. Bxd4 {[%clk 0:02:42.8]}
11... Bc6 {[%clk 0:02:50.3]} 12. O-O {[%clk 0:02:41.7]} 12... a5 {[%clk
0:02:49.7]} 13. Nd5 {[%clk 0:02:37.9]} 13... Bxd5 {[%clk 0:02:33.5]} 14. cxd5
{[%clk 0:02:34.2]} 14... Nd7 {[%clk 0:02:32.5]} 15. Bxg7 {[%clk 0:02:29.4]}
15... Kxg7 {[%clk 0:02:33.4]} 16. Rac1 {[%clk 0:02:27.9]} 16... Qb6+ {[%clk
0:02:31]} 17. Kh1 {[%clk 0:02:27]} 17... Rfc8 {[%clk 0:02:29]} 18. Rxc8 {[%clk
0:02:25.1]} 18... Rxc8 {[%clk 0:02:25]} 19. Rc1 {[%clk 0:02:24.8]} 19... Rxc1+
{[%clk 0:02:18.6]} 20. Qxc1 {[%clk 0:02:23.5]} 20... Qf2 {[%clk 0:02:14.1]} 21.
Qc3+ {[%clk 0:01:58.5]} 21... f6 {[%clk 0:02:07.7]} 22. Bb5 {[%clk 0:01:49.8]}
22... Nc5 {[%clk 0:02:05.9]} 23. h3 {[%clk 0:01:46.9]} 23... b6 {[%clk
0:01:58.7]} 24. a3 {[%clk 0:01:38.2]} 24... a4 {[%clk 0:01:54.7]} 25. Qb4 {[%clk
0:01:33.6]} 25... h5 {[%clk 0:01:37.6]} 26. Bxa4 {[%clk 0:01:27.4]} 26... Nd3
{[%clk 0:01:35.2]} 27. Qc3 {[%clk 0:01:18.5]} 27... Ne1 {[%clk 0:01:26]} 28.
Qxe1 {[%clk 0:00:24.9]} 28... Qxe1+ {[%clk 0:01:23.8]} 0-1

[Event "*** SCC Grand Prix: Titled Tuesday Blitz"]
[Site "Chess.com"]
[Date "2020.06.09"]
[Round "1"]
[White "moro182"]
[Black "ARMQUEEN"]
[Result "1-0"]
[WhiteElo "2635"]
[BlackElo "2312"]
[TimeControl "180+1"]
[EndTime "9:05:34 PDT"]
[Termination "moro182 won by resignation"]

1. Nf3 {[%clk 0:03:00.9]} 1... d5 {[%clk 0:02:57.8]} 2. c4 {[%clk 0:03:00]} 2...
c5 {[%clk 0:02:49.8]} 3. cxd5 {[%clk 0:02:59.5]} 3... Qxd5 {[%clk 0:02:48.7]} 4.
Nc3 {[%clk 0:02:59.1]} 4... Qd8 {[%clk 0:02:47.6]} 5. d4 {[%clk 0:02:54.4]} 5...
e6 {[%clk 0:02:43.2]} 6. Bg5 {[%clk 0:02:48.9]} 6... Qb6 {[%clk 0:02:34.6]} 7.
Na4 {[%clk 0:01:58.1]} 7... Qa5+ {[%clk 0:02:29]} 8. Bd2 {[%clk 0:01:57.5]} 8...
Qc7 {[%clk 0:02:26.8]} 9. Rc1 {[%clk 0:01:50.4]} 9... b6 {[%clk 0:02:07.9]} 10.
e3 {[%clk 0:01:49.6]} 10... Bd7 {[%clk 0:01:56.2]} 11. b4 {[%clk 0:01:46.9]}
11... Qc6 {[%clk 0:01:49.5]} 12. Nc3 {[%clk 0:01:27.5]} 12... c4 {[%clk
0:01:42.2]} 13. Ne5 {[%clk 0:01:26.6]} 13... Qc8 {[%clk 0:01:38.8]} 14. Bxc4
{[%clk 0:01:24.8]} 14... Bxb4 {[%clk 0:01:33.7]} 15. Nb5 {[%clk 0:01:14.1]}
15... Bxd2+ {[%clk 0:01:32.3]} 16. Qxd2 {[%clk 0:01:15]} 16... Qd8 {[%clk
0:01:20]} 17. Nd6+ {[%clk 0:01:13.4]} 17... Kf8 {[%clk 0:01:19.2]} 18. Ndxf7
{[%clk 0:01:13.7]} 18... Qe7 {[%clk 0:01:12.1]} 19. Nxh8 {[%clk 0:01:13.1]}
19... Be8 {[%clk 0:01:08.7]} 20. O-O {[%clk 0:01:08.9]} 20... Nf6 {[%clk
0:01:04]} 21. Bb5 {[%clk 0:01:05.1]} 21... Kg8 {[%clk 0:00:56.6]} 22. Bxe8
{[%clk 0:01:03.6]} 22... Nxe8 {[%clk 0:00:56.4]} 23. Nhf7 {[%clk 0:01:03.6]}
23... Na6 {[%clk 0:00:52]} 24. Qe2 {[%clk 0:00:58.8]} 24... Nac7 {[%clk
0:00:51.9]} 25. Qf3 {[%clk 0:00:53.9]} 25... Nd5 {[%clk 0:00:51.6]} 26. e4
{[%clk 0:00:54.1]} 26... Ndf6 {[%clk 0:00:51.2]} 27. Ng5 {[%clk 0:00:53.1]}
27... Rd8 {[%clk 0:00:50]} 28. Nc6 {[%clk 0:00:51.9]} 1-0

[Event "*** SCC Grand Prix: Titled Tuesday Blitz"]
[Site "Chess.com"]
[Date "2020.06.09"]
[Round "1"]
[White "bugsbunny444"]
[Black "mamonika"]
[Result "1-0"]
[WhiteElo "2479"]
[BlackElo "1933"]
[TimeControl "180+1"]
[EndTime "9:05:38 PDT"]
[Termination "bugsbunny444 won on time"]

1. Nf3 {[%clk 0:03:00.9]} 1... d5 {[%clk 0:02:50.1]} 2. c4 {[%clk 0:03:00.5]}
2... dxc4 {[%clk 0:02:49.4]} 3. e4 {[%clk 0:03:00.1]} 3... b5 {[%clk 0:02:44.9]}
4. a4 {[%clk 0:02:58.4]} 4... c6 {[%clk 0:02:27.3]} 5. b3 {[%clk 0:02:54.6]}
5... cxb3 {[%clk 0:02:06.2]} 6. axb5 {[%clk 0:02:53.6]} 6... cxb5 {[%clk
0:01:55.1]} 7. Qxb3 {[%clk 0:02:43.6]} 7... Be6 {[%clk 0:01:26.6]} 8. Bxb5+
{[%clk 0:02:29.5]} 8... Nd7 {[%clk 0:01:24.6]} 9. Qa4 {[%clk 0:02:24.8]} 9...
Nf6 {[%clk 0:01:00.5]} 10. Nc3 {[%clk 0:02:18.8]} 10... g6 {[%clk 0:00:50.8]}
11. Nd4 {[%clk 0:01:47.4]} 11... Qb6 {[%clk 0:00:34.5]} 12. Bc6 {[%clk
0:01:31.6]} 12... Rc8 {[%clk 0:00:26.4]} 13. Rb1 {[%clk 0:01:23.7]} 13... Qc7
{[%clk 0:00:14.5]} 14. Rb7 {[%clk 0:01:20.5]} 14... Qd6 {[%clk 0:00:11]} 15. Ba3
{[%clk 0:01:04]} 1-0

[Event "*** SCC Grand Prix: Titled Tuesday Blitz"]
[Site "Chess.com"]
[Date "2020.06.09"]
[Round "1"]
[White "Bykov_Egor"]
[Black "LileKoridze"]
[Result "1-0"]
[WhiteElo "2614"]
[BlackElo "2299"]
[TimeControl "180+1"]
[EndTime "9:05:43 PDT"]
[Termination "Bykov_Egor won by resignation"]

1. d4 {[%clk 0:03:00.9]} 1... Nf6 {[%clk 0:02:59.6]} 2. c4 {[%clk 0:03:00.7]}
2... e6 {[%clk 0:02:56.4]} 3. Nc3 {[%clk 0:03:00.3]} 3... Bb4 {[%clk 0:02:55.9]}
4. e3 {[%clk 0:03:00.4]} 4... O-O {[%clk 0:02:56.1]} 5. Bd3 {[%clk 0:03:00.5]}
5... d5 {[%clk 0:02:56.3]} 6. Nf3 {[%clk 0:03:00.3]} 6... c5 {[%clk 0:02:42.3]}
7. O-O {[%clk 0:03:00.1]} 7... Bxc3 {[%clk 0:02:34.5]} 8. bxc3 {[%clk
0:02:59.7]} 8... b6 {[%clk 0:02:34.9]} 9. cxd5 {[%clk 0:02:56.3]} 9... exd5
{[%clk 0:02:34.2]} 10. Re1 {[%clk 0:02:32.8]} 10... Bb7 {[%clk 0:02:24.6]} 11.
c4 {[%clk 0:02:24]} 11... cxd4 {[%clk 0:02:09.9]} 12. Nxd4 {[%clk 0:02:23.1]}
12... Nbd7 {[%clk 0:02:08.8]} 13. cxd5 {[%clk 0:02:18.6]} 13... Nxd5 {[%clk
0:02:07.1]} 14. Ba3 {[%clk 0:02:11.3]} 14... Re8 {[%clk 0:02:05.8]} 15. Nf5
{[%clk 0:02:02.6]} 15... Re6 {[%clk 0:01:19.8]} 16. Bc4 {[%clk 0:01:48.6]} 16...
N7f6 {[%clk 0:01:13]} 17. e4 {[%clk 0:01:31.5]} 17... Nxe4 {[%clk 0:00:54.3]}
18. Bxd5 {[%clk 0:01:31.1]} 18... Nc3 {[%clk 0:00:43.6]} 19. Qd4 {[%clk
0:01:24.2]} 19... Qf6 {[%clk 0:00:14.5]} 20. Bxe6 {[%clk 0:01:17.3]} 20... fxe6
{[%clk 0:00:11.1]} 21. Qxf6 {[%clk 0:01:15.5]} 21... gxf6 {[%clk 0:00:11.4]} 22.
Rxe6 {[%clk 0:01:14.4]} 1-0

[Event "*** SCC Grand Prix: Titled Tuesday Blitz"]
[Site "Chess.com"]
[Date "2020.06.09"]
[Round "1"]
[White "2007checkmate"]
[Black "Bulldog167"]
[Result "0-1"]
[WhiteElo "2409"]
[BlackElo "2777"]
[TimeControl "180+1"]
[EndTime "9:05:44 PDT"]
[Termination "Bulldog167 won by resignation"]

1. Nc3 {[%clk 0:03:00.9]} 1... d5 {[%clk 0:02:56.4]} 2. d4 {[%clk 0:03:00.3]}
2... Nf6 {[%clk 0:02:55.9]} 3. Bf4 {[%clk 0:02:59.9]} 3... g6 {[%clk 0:02:53.5]}
4. e3 {[%clk 0:02:59.8]} 4... Bg7 {[%clk 0:02:53.4]} 5. h4 {[%clk 0:03:00.1]}
5... c6 {[%clk 0:02:53.6]} 6. Be2 {[%clk 0:02:59.6]} 6... h5 {[%clk 0:02:50.6]}
7. Nf3 {[%clk 0:02:59.2]} 7... Bg4 {[%clk 0:02:50]} 8. Ne5 {[%clk 0:02:58.7]}
8... Bxe2 {[%clk 0:02:49.9]} 9. Qxe2 {[%clk 0:02:59.6]} 9... Nbd7 {[%clk
0:02:49.2]} 10. f3 {[%clk 0:02:58.6]} 10... Nxe5 {[%clk 0:02:46.6]} 11. Bxe5
{[%clk 0:02:59.5]} 11... Kf8 {[%clk 0:02:33.1]} 12. g4 {[%clk 0:02:52.4]} 12...
Nd7 {[%clk 0:02:31.9]} 13. Bxg7+ {[%clk 0:02:51.6]} 13... Kxg7 {[%clk
0:02:31.9]} 14. O-O-O {[%clk 0:02:33.4]} 14... e6 {[%clk 0:02:31]} 15. e4 {[%clk
0:02:32.7]} 15... hxg4 {[%clk 0:02:27.2]} 16. fxg4 {[%clk 0:02:31.8]} 16... Rxh4
{[%clk 0:02:27.2]} 17. exd5 {[%clk 0:02:28.3]} 17... Qg5+ {[%clk 0:02:20.1]} 18.
Kb1 {[%clk 0:02:18.5]} 18... cxd5 {[%clk 0:02:19.8]} 19. Rxh4 {[%clk 0:02:05.7]}
19... Qxh4 {[%clk 0:02:19.8]} 20. Qf3 {[%clk 0:02:01.2]} 20... Qf6 {[%clk
0:02:10.6]} 21. Qg2 {[%clk 0:01:58]} 21... Rh8 {[%clk 0:02:08.3]} 22. Nb5 {[%clk
0:01:57.6]} 22... a6 {[%clk 0:01:46.9]} 23. Nd6 {[%clk 0:01:57.3]} 23... Qf4
{[%clk 0:01:28.8]} 24. Nxb7 {[%clk 0:01:47.4]} 24... Rh4 {[%clk 0:01:25.4]} 25.
Rf1 {[%clk 0:01:14.8]} 25... Rxg4 {[%clk 0:01:20.9]} 26. Qh3 {[%clk 0:01:01.9]}
26... Qxd4 {[%clk 0:01:10.1]} 27. Nd8 {[%clk 0:00:28.4]} 27... Rg1 {[%clk
0:01:02.4]} 28. Nxf7 {[%clk 0:00:27.3]} 28... Qd1+ {[%clk 0:01:00.4]} 0-1

[Event "*** SCC Grand Prix: Titled Tuesday Blitz"]
[Site "Chess.com"]
[Date "2020.06.09"]
[Round "1"]
[White "AungTZ"]
[Black "chessplayer9919"]
[Result "0-1"]
[WhiteElo "2109"]
[BlackElo "2519"]
[TimeControl "180+1"]
[EndTime "9:05:46 PDT"]
[Termination "chessplayer9919 won by resignation"]

1. e4 {[%clk 0:03:00]} 1... c6 {[%clk 0:02:57]} 2. d4 {[%clk 0:02:59.2]} 2... d5
{[%clk 0:02:51.9]} 3. Nc3 {[%clk 0:02:59.2]} 3... dxe4 {[%clk 0:02:52]} 4. Nxe4
{[%clk 0:02:58.9]} 4... Bf5 {[%clk 0:02:52.4]} 5. Ng3 {[%clk 0:02:57.7]} 5...
Bg6 {[%clk 0:02:50.6]} 6. h4 {[%clk 0:02:57.5]} 6... h6 {[%clk 0:02:50.2]} 7.
Nf3 {[%clk 0:02:57.2]} 7... e6 {[%clk 0:02:49]} 8. Bd3 {[%clk 0:02:56.6]} 8...
Bxd3 {[%clk 0:02:48.8]} 9. Qxd3 {[%clk 0:02:56]} 9... Nd7 {[%clk 0:02:49.1]} 10.
Bd2 {[%clk 0:02:55.2]} 10... Ngf6 {[%clk 0:02:48.5]} 11. O-O-O {[%clk
0:02:53.6]} 11... Bd6 {[%clk 0:02:48.4]} 12. Ne4 {[%clk 0:02:51.9]} 12... Nxe4
{[%clk 0:02:48.7]} 13. Qxe4 {[%clk 0:02:51.7]} 13... Nf6 {[%clk 0:02:49.6]} 14.
Qe2 {[%clk 0:02:48.1]} 14... Qc7 {[%clk 0:02:49.5]} 15. Kb1 {[%clk 0:02:45]}
15... O-O-O {[%clk 0:02:49.6]} 16. c4 {[%clk 0:02:40.6]} 16... Rhe8 {[%clk
0:02:47.6]} 17. Bc3 {[%clk 0:02:39.8]} 17... c5 {[%clk 0:02:26.1]} 18. dxc5
{[%clk 0:02:23.1]} 18... Qxc5 {[%clk 0:02:23.7]} 19. Ka1 {[%clk 0:02:07.6]}
19... Kb8 {[%clk 0:02:20.9]} 20. Bd4 {[%clk 0:01:58.4]} 20... Qf5 {[%clk
0:02:17.8]} 21. Bxf6 {[%clk 0:01:53.5]} 21... Qxf6 {[%clk 0:02:16.5]} 22. g4
{[%clk 0:01:45]} 22... Bc7 {[%clk 0:02:12.2]} 23. g5 {[%clk 0:01:44.7]} 23...
hxg5 {[%clk 0:01:57.5]} 24. hxg5 {[%clk 0:01:44.3]} 24... Qf5 {[%clk 0:01:56.8]}
25. a3 {[%clk 0:01:41.8]} 25... a6 {[%clk 0:01:54.3]} 26. Ka2 {[%clk 0:01:31.8]}
26... e5 {[%clk 0:01:41.8]} 27. Rxd8+ {[%clk 0:01:12.9]} 27... Rxd8 {[%clk
0:01:41.3]} 28. Re1 {[%clk 0:01:11.8]} 28... f6 {[%clk 0:01:36]} 29. gxf6 {[%clk
0:01:10.9]} 29... gxf6 {[%clk 0:01:36.9]} 30. Nd2 {[%clk 0:01:07.1]} 30... Qf4
{[%clk 0:01:28.7]} 31. Ne4 {[%clk 0:01:06.4]} 31... f5 {[%clk 0:01:28.7]} 32.
Nc5 {[%clk 0:01:05.8]} 32... Rd2 {[%clk 0:01:28.4]} 33. Qh5 {[%clk 0:00:41.4]}
33... Qxc4+ {[%clk 0:01:27.6]} 34. Nb3 {[%clk 0:00:39.6]} 34... Rd3 {[%clk
0:01:23.8]} 35. Qe8+ {[%clk 0:00:34.6]} 35... Ka7 {[%clk 0:01:23.5]} 36. Qd7
{[%clk 0:00:30.8]} 36... Qxb3+ {[%clk 0:01:22.5]} 37. Ka1 {[%clk 0:00:29.7]}
37... Rxd7 {[%clk 0:01:23.4]} 0-1

[Event "*** SCC Grand Prix: Titled Tuesday Blitz"]
[Site "Chess.com"]
[Date "2020.06.09"]
[Round "1"]
[White "rubhani"]
[Black "Chess2019Player"]
[Result "1-0"]
[WhiteElo "2548"]
[BlackElo "2163"]
[TimeControl "180+1"]
[EndTime "9:05:47 PDT"]
[Termination "rubhani won by resignation"]

1. e4 {[%clk 0:02:57]} 1... e6 {[%clk 0:02:59]} 2. d4 {[%clk 0:02:55.4]} 2... d5
{[%clk 0:02:59.6]} 3. Nd2 {[%clk 0:02:55.7]} 3... Be7 {[%clk 0:02:56.9]} 4. Ngf3
{[%clk 0:02:55.2]} 4... Nf6 {[%clk 0:02:54.5]} 5. e5 {[%clk 0:02:55.2]} 5...
Nfd7 {[%clk 0:02:55]} 6. Bd3 {[%clk 0:02:55.8]} 6... c5 {[%clk 0:02:55.2]} 7. c3
{[%clk 0:02:56.1]} 7... Nc6 {[%clk 0:02:55.6]} 8. O-O {[%clk 0:02:56.3]} 8... g5
{[%clk 0:02:52.9]} 9. dxc5 {[%clk 0:02:55.4]} 9... g4 {[%clk 0:02:44.5]} 10. Nd4
{[%clk 0:02:55.2]} 10... Ndxe5 {[%clk 0:02:45.1]} 11. Bb5 {[%clk 0:02:55.1]}
11... Bd7 {[%clk 0:02:45.5]} 12. N2b3 {[%clk 0:02:33]} 12... h5 {[%clk
0:02:21.9]} 13. f4 {[%clk 0:02:29.4]} 13... gxf3 {[%clk 0:02:15.7]} 14. Nxf3
{[%clk 0:02:29.4]} 14... Qc7 {[%clk 0:01:23.5]} 15. Bf4 {[%clk 0:02:02.7]} 15...
Nxf3+ {[%clk 0:01:22.4]} 16. Qxf3 {[%clk 0:02:02.4]} 16... e5 {[%clk 0:01:22.3]}
17. Bg3 {[%clk 0:01:42.2]} 17... O-O-O {[%clk 0:00:41.8]} 18. Qxf7 {[%clk
0:01:26.5]} 18... Bg4 {[%clk 0:00:14.7]} 19. Bxc6 {[%clk 0:01:23.1]} 19... bxc6
{[%clk 0:00:15.6]} 20. Rae1 {[%clk 0:01:22.9]} 20... Rhf8 {[%clk 0:00:14.9]} 21.
Qg6 {[%clk 0:01:15.3]} 21... Rxf1+ {[%clk 0:00:14.6]} 22. Rxf1 {[%clk
0:01:15.7]} 22... a5 {[%clk 0:00:05.7]} 23. Re1 {[%clk 0:01:15.9]} 23... a4
{[%clk 0:00:06.1]} 24. Bxe5 {[%clk 0:01:16]} 24... Qa7 {[%clk 0:00:06.8]} 25.
Nd4 {[%clk 0:01:15.5]} 25... Bxc5 {[%clk 0:00:07.2]} 26. Qxc6+ {[%clk
0:01:15.5]} 1-0

[Event "*** SCC Grand Prix: Titled Tuesday Blitz"]
[Site "Chess.com"]
[Date "2020.06.09"]
[Round "1"]
[White "Munkhzul_Turmunkh"]
[Black "Playgood28"]
[Result "1-0"]
[WhiteElo "2603"]
[BlackElo "2277"]
[TimeControl "180+1"]
[EndTime "9:05:48 PDT"]
[Termination "Munkhzul_Turmunkh won by resignation"]

1. e4 {[%clk 0:02:59]} 1... e5 {[%clk 0:02:58.9]} 2. Nf3 {[%clk 0:02:58.8]} 2...
d6 {[%clk 0:02:58.2]} 3. d4 {[%clk 0:02:58.3]} 3... exd4 {[%clk 0:02:58.2]} 4.
Nxd4 {[%clk 0:02:59.2]} 4... Nf6 {[%clk 0:02:58.1]} 5. Nc3 {[%clk 0:02:59.3]}
5... Be7 {[%clk 0:02:57.9]} 6. Bc4 {[%clk 0:02:58.2]} 6... O-O {[%clk
0:02:57.1]} 7. O-O {[%clk 0:02:58.4]} 7... Nxe4 {[%clk 0:02:57]} 8. Nxe4 {[%clk
0:02:19.9]} 8... d5 {[%clk 0:02:56]} 9. Bd3 {[%clk 0:02:20.5]} 9... dxe4 {[%clk
0:02:55.6]} 10. Bxe4 {[%clk 0:02:21.4]} 10... Re8 {[%clk 0:02:55.7]} 11. c3
{[%clk 0:02:10.7]} 11... Bf6 {[%clk 0:02:46.7]} 12. Qc2 {[%clk 0:02:08.2]} 12...
g6 {[%clk 0:02:43.2]} 13. Be3 {[%clk 0:01:54.6]} 13... c6 {[%clk 0:02:28.2]} 14.
Rad1 {[%clk 0:01:53.7]} 14... Qc7 {[%clk 0:02:26.3]} 15. Rfe1 {[%clk 0:01:51.5]}
15... Nd7 {[%clk 0:02:25.2]} 16. Bd3 {[%clk 0:01:47.1]} 16... Ne5 {[%clk
0:02:23.6]} 17. Bf1 {[%clk 0:01:45]} 17... Bd7 {[%clk 0:01:45.6]} 18. h3 {[%clk
0:01:39.4]} 18... Rad8 {[%clk 0:01:44.3]} 19. f4 {[%clk 0:01:30.9]} 19... c5
{[%clk 0:01:28]} 20. fxe5 {[%clk 0:01:09.8]} 20... cxd4 {[%clk 0:01:23.4]} 21.
Bxd4 {[%clk 0:01:10.7]} 21... Bxe5 {[%clk 0:01:19.6]} 22. Bxe5 {[%clk
0:01:10.8]} 22... Rxe5 {[%clk 0:01:18.6]} 23. Rxe5 {[%clk 0:01:11.7]} 23... Qxe5
{[%clk 0:01:18.1]} 24. Qf2 {[%clk 0:01:01]} 24... Kg7 {[%clk 0:01:00]} 25. Qxa7
{[%clk 0:00:49.3]} 25... Qc7 {[%clk 0:00:46]} 26. Qd4+ {[%clk 0:00:43.8]} 26...
Kg8 {[%clk 0:00:46]} 27. Bb5 {[%clk 0:00:39.1]} 1-0

[Event "*** SCC Grand Prix: Titled Tuesday Blitz"]
[Site "Chess.com"]
[Date "2020.06.09"]
[Round "1"]
[White "DivyaDeshmukh23"]
[Black "ChessWarrior7197"]
[Result "0-1"]
[WhiteElo "2454"]
[BlackElo "2937"]
[TimeControl "180+1"]
[EndTime "9:05:57 PDT"]
[Termination "ChessWarrior7197 won by resignation"]

1. e4 {[%clk 0:03:00.9]} 1... c5 {[%clk 0:02:59.8]} 2. Nf3 {[%clk 0:02:49.7]}
2... d6 {[%clk 0:02:59.9]} 3. d4 {[%clk 0:02:50.6]} 3... cxd4 {[%clk 0:03:00.8]}
4. Nxd4 {[%clk 0:02:51.5]} 4... Nf6 {[%clk 0:03:01.1]} 5. Nc3 {[%clk 0:02:52.2]}
5... a6 {[%clk 0:03:01.5]} 6. Bg5 {[%clk 0:02:52.8]} 6... e6 {[%clk 0:03:01.4]}
7. f4 {[%clk 0:02:53.4]} 7... h6 {[%clk 0:03:01.6]} 8. Bh4 {[%clk 0:02:52.2]}
8... Qb6 {[%clk 0:03:01.3]} 9. Qd2 {[%clk 0:02:52.8]} 9... Qxb2 {[%clk
0:03:01.3]} 10. Rb1 {[%clk 0:02:53.7]} 10... Qa3 {[%clk 0:03:01.8]} 11. f5
{[%clk 0:02:54.6]} 11... Be7 {[%clk 0:02:53.4]} 12. fxe6 {[%clk 0:02:50.2]}
12... fxe6 {[%clk 0:02:52.7]} 13. Be2 {[%clk 0:02:46.2]} 13... O-O {[%clk
0:02:49]} 14. O-O {[%clk 0:02:43]} 14... Nc6 {[%clk 0:02:47.9]} 15. Nxc6 {[%clk
0:02:35.8]} 15... bxc6 {[%clk 0:02:47.3]} 16. Bf2 {[%clk 0:02:27.1]} 16... d5
{[%clk 0:02:26.9]} 17. e5 {[%clk 0:02:09.9]} 17... Nd7 {[%clk 0:02:26]} 18. Bg3
{[%clk 0:00:54.5]} 18... Bb4 {[%clk 0:02:16.2]} 19. Rb3 {[%clk 0:00:39.3]} 19...
Qa5 {[%clk 0:02:14.7]} 20. a3 {[%clk 0:00:28.7]} 20... Be7 {[%clk 0:02:08.1]}
21. Rxf8+ {[%clk 0:00:19.4]} 21... Nxf8 {[%clk 0:02:09]} 22. Bf4 {[%clk
0:00:19]} 22... Bd7 {[%clk 0:01:52.5]} 23. Bxh6 {[%clk 0:00:08.9]} 23... gxh6
{[%clk 0:01:50.6]} 24. Qxh6 {[%clk 0:00:09.8]} 24... Be8 {[%clk 0:01:20.8]} 25.
Nb5 {[%clk 0:00:09.6]} 25... Qe1+ {[%clk 0:01:18.5]} 26. Bf1 {[%clk 0:00:08.6]}
26... Bc5+ {[%clk 0:01:18.9]} 0-1